fUSD/lending_fUSD_20260224
["ID","MTS","AMOUNT","RATE_DAILY","PERIOD"]
[406536915,1771923217032,-500.0,0.00045584,120]
[406536916,1771923217061,-500.0,0.00045584,120]
[406536917,1771923217089,-500.0,0.00045584,120]
[406536918,1771923217116,-500.0,0.00045584,120]
[406536919,1771923217143,-500.0,0.00045584,120]
[406536920,1771923217177,-500.0,0.00045584,120]
[406536921,1771923217205,-500.0,0.00045584,120]
[406536922,1771923217234,-500.0,0.00045584,120]
[406536923,1771923217260,-500.0,0.00045584,120]
[406536924,1771923217288,-500.0,0.00045584,120]
[406536925,1771923217319,-268.15569744,0.00045584,120]
[406536926,1771923217345,-100228.73570167,0.00045584,30]
[406536927,1771923217375,-150.0,0.00045584,120]
[406536928,1771923217404,-3193.87892642,0.00045584,120]
[406536929,1771923217430,-14233.0,0.00045584,30]
[406536930,1771923217456,-1009.81751716,0.00045584,30]
[406536931,1771923217482,-1036.99108694,0.00045584,120]
[406536932,1771923217509,-1036.99108694,0.00045584,120]
[406536933,1771923217535,-1036.99108694,0.00045584,120]
[406536934,1771923217563,-1036.99108694,0.00045584,120]
[406536935,1771923217591,-1036.99108694,0.00045584,120]
[406536936,1771923217618,-1036.99108694,0.00045584,120]
[406536937,1771923217645,-1036.99108694,0.00045584,120]
[406536938,1771923217672,-1036.99108694,0.00045584,120]
[406536939,1771923217699,-1036.99108694,0.00045584,120]
[406536940,1771923217725,-1036.99108694,0.00045584,120]
[406536941,1771923217750,-1036.99108694,0.00045584,120]
[406536942,1771923217778,-1036.99108694,0.00045584,120]
[406536943,1771923217803,-1036.99108694,0.00045584,120]
[406536944,1771923217829,-1036.99108694,0.00045584,120]
[406536945,1771923217854,-1036.99108694,0.00045584,120]
[406536946,1771923217880,-1036.99108694,0.00045584,120]
[406536947,1771923217905,-1036.99108694,0.00045584,120]
[406536948,1771923217930,-1036.99108694,0.00045584,120]
[406536949,1771923217955,-1036.99108694,0.00045584,120]
[406536950,1771923217980,-1036.99108694,0.00045584,120]
[406536951,1771923218007,-1036.99108694,0.00045584,120]
[406536952,1771923218245,-1036.99108694,0.00045584,120]
[406536953,1771923218273,-1036.99108694,0.00045584,120]
[406536954,1771923218303,-1036.99108694,0.00045584,120]
[406536955,1771923218329,-1036.99108694,0.00045584,120]
[406536956,1771923218355,-1036.99108694,0.00045584,120]
[406536957,1771923218381,-1036.99108694,0.00045584,120]
[406536958,1771923218408,-1036.99108694,0.00045584,120]
[406536959,1771923218433,-1036.99108694,0.00045584,120]
[406536960,1771923218459,-172.83184782,0.00045584,120]
[406536961,1771923218485,-172.83184782,0.00045584,120]
[406536962,1771923218511,-172.83184782,0.00045584,120]
[406536963,1771923218538,-172.83184782,0.00045584,120]
[406536964,1771923218566,-172.83184782,0.00045584,120]
[406536965,1771923218594,-172.83184782,0.00045584,120]
[406536966,1771923218620,-204.83078625,0.00045584,30]
[406536967,1771923218647,-132999.61,0.00045584,120]
[406536968,1771923218674,-10000.0,0.00045584,60]
[406536969,1771923218700,-481.76243594,0.00045584,30]
[406536970,1771923218725,-5042.0,0.00045584,30]
[406536971,1771923218752,-811.03758723,0.00045584,120]
[406536972,1771923218776,-664.17499783,0.00045584,120]
[406536973,1771923218803,-20000.0,0.00045584,120]
[406536974,1771923218829,-501.18952063,0.00045584,120]
[406536975,1771923218857,-12761.75,0.00045584,30]
[406536976,1771923218888,-300.0,0.00045584,120]
[406536977,1771923218916,-275.0,0.00045584,120]
[406536978,1771923218944,-485.45,0.00045584,30]
[406536979,1771923218970,-154.37,0.00045584,30]
[406536980,1771923219138,2317.46108919,0.00045584,30]
[406536984,1771923239740,4543.41688874,0.00010508,2]
[406536985,1771923241709,300.0,0.00010607,2]
[406536986,1771923242113,150.0,0.00010607,2]
[406536987,1771923245108,200.0,0.00045584,120]
[406536988,1771923245308,500.0,0.00045584,120]
[406536989,1771923245338,151.0,0.00045584,120]
[406536990,1771923245367,151.0,0.00045584,120]
[406536991,1771923245690,200.0,0.00045584,120]
[406536992,1771923245902,500.0,0.00045584,120]
[406536993,1771923245935,156.587,0.00045584,120]
[406536994,1771923245966,151.0,0.00045584,120]
[406536995,1771923246033,500.0,0.00010607,2]
[406536996,1771923246086,337.81650921,0.00010607,2]
[406536997,1771923246388,773.0,0.00045584,30]
[406536998,1771923246553,500.0,0.00045584,120]
[406536999,1771923246624,162.380719,0.00045584,120]
[406537000,1771923247115,151.0,0.00045584,120]
[406537001,1771923247147,500.0,0.00045584,120]
[406537002,1771923247181,168.3888056,0.00045584,120]
[406537003,1771923247595,151.0,0.00045584,120]
[406537004,1771923247712,500.0,0.00045584,120]
[406537005,1771923247755,151.0,0.00045584,120]
[406537006,1771923247787,174.61919141,0.00045584,120]
[406537007,1771923248157,500.0,0.00045584,120]
[406537008,1771923248216,151.0,0.00045584,120]
[406537009,1771923248378,500.0,0.00045584,120]
[406537010,1771923248409,151.0,0.00045584,120]
[406537011,1771923248440,181.08010149,0.00045584,120]
[406537012,1771923248747,518.5,0.00045584,120]
[406537013,1771923248823,151.0,0.00045584,120]
[406537014,1771923249005,151.0,0.00045584,120]
[406537015,1771923249038,500.0,0.00045584,120]
[406537016,1771923249070,187.78006525,0.00045584,120]
[406537017,1771923249371,537.6845,0.00045584,120]
[406537018,1771923249416,151.0,0.00045584,120]
[406537019,1771923249448,250.0,0.00045584,120]
[406537020,1771923249598,151.0,0.00045584,120]
[406537021,1771923249630,194.72792766,0.00045584,120]
[406537022,1771923249662,500.0,0.00045584,120]
[406537023,1771923249966,557.5788265,0.00045584,120]
[406537024,1771923250010,151.0,0.00045584,120]
[406537025,1771923250066,250.0,0.00045584,120]
[406537026,1771923250185,151.0,0.00045584,120]
[406537027,1771923250216,500.0,0.00045584,120]
[406537028,1771923250246,201.93286099,0.00045584,120]
[406537029,1771923250644,151.0,0.00045584,120]
[406537030,1771923250688,578.20924308,0.00045584,120]
[406537031,1771923250720,250.0,0.00045584,120]
[406537032,1771923250785,151.0,0.00045584,120]
[406537033,1771923250816,209.40437684,0.00045584,120]
[406537034,1771923250850,500.0,0.00045584,120]
[406537035,1771923251238,151.0,0.00045584,120]
[406537036,1771923251304,250.0,0.00045584,120]
[406537037,1771923251338,599.60298507,0.00045584,120]
[406537038,1771923251392,151.0,0.00045584,120]
[406537039,1771923251422,500.0,0.00045584,120]
[406537040,1771923251453,217.15233878,0.00045584,120]
[406537041,1771923252323,151.0,0.00045584,120]
[406537042,1771923252355,621.78829552,0.00045584,120]
[406537043,1771923252386,250.0,0.00045584,120]
[406537044,1771923252416,500.0,0.00045584,120]
[406537045,1771923252445,151.0,0.00045584,120]
[406537046,1771923252475,225.18697532,0.00045584,120]
[406537047,1771923252504,151.0,0.00045584,120]
[406537048,1771923252535,250.0,0.00045584,120]
[406537049,1771923252575,644.79446246,0.00045584,120]
[406537050,1771923252606,500.0,0.00045584,120]
[406537051,1771923252636,225.18697532,0.00045584,120]
[406537052,1771923253058,151.0,0.00045584,120]
[406537053,1771923253192,500.0,0.00045584,120]
[406537054,1771923253295,250.0,0.00045584,120]
[406537055,1771923253652,151.0,0.00045584,120]
[406537056,1771923253722,668.65185757,0.00045584,120]
[406537057,1771923253785,500.0,0.00045584,120]
[406537058,1771923253881,250.0,0.00045584,120]
[406537059,1771923254366,693.3919763,0.00045584,120]
[406537060,1771923254411,500.0,0.00045584,120]
[406537061,1771923254491,250.0,0.00045584,120]
[406537062,1771923254993,719.04747942,0.00045584,120]
[406537063,1771923255043,500.0,0.00045584,120]
[406537064,1771923255091,250.0,0.00045584,120]
[406537065,1771923255129,500.0,0.00045584,120]
[406537066,1771923255700,1030.0,0.00045584,120]
[406537067,1771923255740,250.0,0.00045584,120]
[406537068,1771923255776,500.0,0.00045584,120]
[406537069,1771923255812,745.65223616,0.00045584,120]
[406537070,1771923256199,500.0,0.00045584,120]
[406537071,1771923256305,1068.11,0.00045584,120]
[406537072,1771923256341,500.0,0.00045584,120]
[406537073,1771923256411,773.2413689,0.00045584,120]
[406537074,1771923256765,500.0,0.00045584,120]
[406537075,1771923256865,1107.63007,0.00045584,120]
[406537076,1771923256899,1110.45997507,0.00045584,30]
[406537077,1771923256946,500.0,0.00045584,120]
[406537078,1771923257372,500.0,0.00045584,120]
[406537079,1771923257466,1148.61238259,0.00045584,120]
[406537080,1771923257570,500.0,0.00045584,120]
[406537081,1771923257639,801.85129955,0.00045584,120]
[406537082,1771923258008,500.0,0.00045584,120]
[406537083,1771923258055,1191.11104075,0.00045584,120]
[406537084,1771923258192,500.0,0.00045584,120]
[406537085,1771923258615,500.0,0.00045584,120]
[406537086,1771923258724,1235.18214925,0.00045584,120]
[406537087,1771923258779,500.0,0.00045584,120]
[406537088,1771923259275,500.0,0.00045584,120]
[406537089,1771923259381,500.0,0.00045584,120]
[406537090,1771923259602,689.79181114,0.00010607,2]
[406537091,1771923259632,543.09064587,0.00010607,2]
[406537092,1771923259656,146.70116527,0.00010607,2]
[406537093,1771923259690,689.79181114,0.00010607,2]
[406537094,1771923259726,689.79181114,0.00010607,2]
[406537095,1771923259760,689.79181114,0.00010607,2]
[406537096,1771923259792,689.79181114,0.00010607,2]
[406537097,1771923259822,689.79181114,0.00010607,2]
[406537098,1771923259854,689.79181114,0.00010607,2]
[406537099,1771923259887,689.79181114,0.00010607,2]
[406537100,1771923259918,689.79181114,0.00010607,2]
[406537101,1771923259978,689.79181114,0.00010607,2]
[406537102,1771923260014,500.0,0.00045584,120]
[406537103,1771923260044,689.79181114,0.00010607,2]
[406537104,1771923260075,689.79181114,0.00010607,2]
[406537105,1771923260105,689.79181114,0.00010607,2]
[406537106,1771923260135,689.79181114,0.00010607,2]
[406537107,1771923260168,689.79181114,0.00010607,2]
[406537108,1771923260197,196.22347877,0.00010607,2]
[406537109,1771923260481,493.56833237,0.00010607,2]
[406537110,1771923260516,689.79181114,0.00010607,2]
[406537111,1771923260554,689.79181114,0.00010607,2]
[406537112,1771923260585,689.79181114,0.00010607,2]
[406537113,1771923260614,689.79181114,0.00010607,2]
[406537114,1771923260648,689.79181114,0.00010607,2]
[406537115,1771923260677,689.79181114,0.00010607,2]
[406537116,1771923260707,689.79181114,0.00010607,2]
[406537117,1771923260748,500.0,0.00045584,120]
[406537118,1771923260781,689.79181114,0.00010607,2]
[406537119,1771923260815,500.0,0.00045584,120]
[406537120,1771923260845,689.79181114,0.00010607,2]
[406537121,1771923260879,689.79181114,0.00010607,2]
[406537122,1771923260917,689.79181114,0.00010607,2]
[406537123,1771923260948,689.79181114,0.00010607,2]
[406537124,1771923260980,689.79181114,0.00010607,2]
[406537125,1771923261012,539.14812281,0.00010607,2]
[406537126,1771923261036,150.64368833,0.00010607,2]
[406537127,1771923261068,689.79181114,0.00010607,2]
[406537128,1771923261113,689.79181114,0.00010607,2]
[406537129,1771923261146,689.79181114,0.00010607,2]
[406537130,1771923261182,689.79181114,0.00010607,2]
[406537131,1771923261259,689.79181114,0.00010607,2]
[406537132,1771923261314,689.79181114,0.00010607,2]
[406537133,1771923261347,689.79181114,0.00010607,2]
[406537134,1771923261383,689.79181114,0.00010607,2]
[406537135,1771923261414,689.79181114,0.00010607,2]
[406537136,1771923261447,689.79181114,0.00010607,2]
[406537137,1771923261476,689.79181114,0.00010607,2]
[406537138,1771923261513,500.0,0.00045584,120]
[406537139,1771923261542,689.79181114,0.00010607,2]
[406537140,1771923261571,689.79181114,0.00010607,2]
[406537141,1771923261609,500.0,0.00045584,120]
[406537142,1771923261639,689.79181114,0.00010607,2]
[406537143,1771923261669,192.28095571,0.00010607,2]
[406537144,1771923261691,497.51085543,0.00010607,2]
[406537145,1771923261721,689.79181114,0.00010607,2]
[406537146,1771923261751,689.79181114,0.00010607,2]
[406537147,1771923261788,689.79181114,0.00010607,2]
[406537148,1771923261826,689.79181114,0.00010607,2]
[406537149,1771923261856,689.79181114,0.00010607,2]
[406537150,1771923261887,689.79181114,0.00010607,2]
[406537151,1771923261921,689.79181114,0.00010607,2]
[406537152,1771923261958,689.79181114,0.00010607,2]
[406537153,1771923261994,689.79181114,0.00010607,2]
[406537154,1771923262027,500.0,0.00045584,120]
[406537155,1771923262056,689.79181114,0.00010607,2]
[406537156,1771923262090,500.0,0.00045584,120]
[406537157,1771923262149,500.0,0.00045584,120]
[406537158,1771923262215,500.0,0.00045584,120]
[406537159,1771923262599,620.0,0.00045584,120]
[406537160,1771923262710,500.0,0.00045584,120]
[406537161,1771923262961,642.94,0.00045584,120]
[406537162,1771923263320,500.0,0.00045584,120]
[406537163,1771923263600,666.72878,0.00045584,120]
[406537164,1771923263926,500.0,0.00045584,120]
[406537165,1771923264200,691.39774486,0.00045584,120]
[406537166,1771923264550,500.0,0.00045584,120]
[406537167,1771923264795,716.97946142,0.00045584,120]
[406537168,1771923265272,500.0,0.00045584,120]
[406537169,1771923265580,743.50770149,0.00045584,120]
[406537170,1771923265629,200.0,0.00045584,60]
[406537171,1771923265888,500.0,0.00045584,120]
[406537172,1771923266135,771.01748645,0.00045584,120]
[406537173,1771923266166,207.4,0.00045584,60]
[406537174,1771923266750,500.0,0.00045584,120]
[406537175,1771923266821,799.54513345,0.00045584,120]
[406537176,1771923266859,215.0738,0.00045584,60]
[406537177,1771923267180,500.0,0.00045584,120]
[406537178,1771923267331,829.12830338,0.00045584,120]
[406537179,1771923267385,223.0315306,0.00045584,60]
[406537180,1771923267622,500.0,0.00045584,120]
[406537181,1771923267697,520.0,0.00045584,120]
[406537182,1771923267948,859.80605061,0.00045584,120]
[406537183,1771923267981,500.0,0.00045584,120]
[406537184,1771923268019,231.28369723,0.00045584,60]
[406537185,1771923268230,500.0,0.00045584,120]
[406537186,1771923268337,539.24,0.00045584,120]
[406537187,1771923268563,500.0,0.00045584,120]
[406537188,1771923268605,239.84119403,0.00045584,60]
[406537189,1771923268635,891.61887448,0.00045584,120]
[406537190,1771923268874,500.0,0.00045584,120]
[406537191,1771923268928,559.19188,0.00045584,120]
[406537192,1771923269165,500.0,0.00045584,120]
[406537193,1771923269207,248.71531821,0.00045584,60]
[406537194,1771923269236,924.60877284,0.00045584,120]
[406537195,1771923269484,500.0,0.00045584,120]
[406537196,1771923269571,579.88197956,0.00045584,120]
[406537197,1771923269775,500.0,0.00045584,120]
[406537198,1771923269822,958.81929743,0.00045584,120]
[406537199,1771923270186,601.3376128,0.00045584,120]
[406537200,1771923270316,248.71531821,0.00045584,60]
[406537201,1771923270382,500.0,0.00045584,120]
[406537202,1771923270430,994.29561144,0.00045584,120]
[406537203,1771923270769,601.3376128,0.00045584,120]
[406537204,1771923270990,500.0,0.00045584,120]
[406537205,1771923271577,500.0,0.00045584,120]
[406537206,1771923272161,500.0,0.00045584,120]
[406537207,1771923272496,250.0,0.00045584,120]
[406537208,1771923272924,500.0,0.00045584,120]
[406537209,1771923273096,250.0,0.00045584,120]
[406537210,1771923273353,500.0,0.00045584,120]
[406537211,1771923273720,250.0,0.00045584,120]
[406537212,1771923273967,500.0,0.00045584,120]
[406537213,1771923274373,250.0,0.00045584,120]
[406537214,1771923274556,500.0,0.00045584,120]
[406537215,1771923274983,250.0,0.00045584,120]
[406537216,1771923275166,500.0,0.00045584,120]
[406537217,1771923275597,250.0,0.00045584,120]
[406537218,1771923275775,500.0,0.00045584,120]
[406537219,1771923275831,500.0,0.00045584,120]
[406537220,1771923275860,250.0,0.00045584,120]
[406537221,1771923276242,250.0,0.00045584,120]
[406537222,1771923276395,500.0,0.00045584,120]
[406537223,1771923276466,500.0,0.00045584,120]
[406537224,1771923276558,250.0,0.00045584,120]
[406537225,1771923277251,500.0,0.00045584,120]
[406537226,1771923277283,500.0,0.00045584,120]
[406537227,1771923277318,250.0,0.00045584,120]
[406537228,1771923277403,250.0,0.00045584,120]
[406537229,1771923277680,500.0,0.00045584,120]
[406537230,1771923277713,500.0,0.00045584,120]
[406537231,1771923277756,250.0,0.00045584,120]
[406537232,1771923278041,250.0,0.00045584,120]
[406537233,1771923278306,500.0,0.00045584,120]
[406537234,1771923278337,500.0,0.00045584,120]
[406537235,1771923278381,250.0,0.00045584,120]
[406537236,1771923278520,689.79181114,0.00010607,2]
[406537237,1771923278551,689.79181114,0.00010607,2]
[406537238,1771923278583,689.79181114,0.00010607,2]
[406537239,1771923278615,689.79181114,0.00010607,2]
[406537240,1771923278647,689.79181114,0.00010607,2]
[406537241,1771923278682,689.79181114,0.00010607,2]
[406537242,1771923278715,689.79181114,0.00010607,2]
[406537243,1771923278747,689.79181114,0.00010607,2]
[406537244,1771923278780,689.79181114,0.00010607,2]
[406537245,1771923278812,689.79181114,0.00010607,2]
[406537246,1771923278847,689.79181114,0.00010607,2]
[406537247,1771923278878,689.79181114,0.00010607,2]
[406537248,1771923278911,250.0,0.00045584,120]
[406537249,1771923278946,689.79181114,0.00010607,2]
[406537250,1771923278978,689.79181114,0.00010607,2]
[406537251,1771923279010,500.0,0.00045584,120]
[406537252,1771923279041,342.92464404,0.00010607,2]
[406537253,1771923279066,346.8671671,0.00010607,2]
[406537254,1771923279098,689.79181114,0.00010607,2]
[406537255,1771923279133,689.79181114,0.00010607,2]
[406537256,1771923279163,689.79181114,0.00010607,2]
[406537257,1771923279193,689.79181114,0.00010607,2]
[406537258,1771923279223,689.79181114,0.00010607,2]
[406537259,1771923279252,689.79181114,0.00010607,2]
[406537260,1771923279282,689.79181114,0.00010607,2]
[406537261,1771923279316,689.79181114,0.00010607,2]
[406537262,1771923279347,689.79181114,0.00010607,2]
[406537263,1771923279378,689.79181114,0.00010607,2]
[406537264,1771923279406,689.79181114,0.00010607,2]
[406537265,1771923279435,689.79181114,0.00010607,2]
[406537266,1771923279466,500.0,0.00045584,120]
[406537267,1771923279496,689.79181114,0.00010607,2]
[406537268,1771923279528,685.84928808,0.00010607,2]
[406537269,1771923279551,3.94252306,0.00010607,2]
[406537270,1771923279581,250.0,0.00045584,120]
[406537271,1771923279614,250.0,0.00045584,120]
[406537272,1771923279863,500.0,0.00045584,120]
[406537273,1771923280158,250.0,0.00045584,120]
[406537274,1771923280187,250.0,0.00045584,120]
[406537275,1771923280534,500.0,0.00045584,120]
[406537276,1771923280965,250.0,0.00045584,120]
[406537277,1771923281035,250.0,0.00045584,120]
[406537278,1771923281164,500.0,0.00045584,120]
[406537279,1771923281650,250.0,0.00045584,120]
[406537280,1771923282112,303.0726263,0.00045584,120]
[406537281,1771923282274,250.0,0.00045584,120]
[406537282,1771923282888,250.0,0.00045584,120]
[406537283,1771923283529,250.0,0.00045584,120]
[406537284,1771923284148,250.0,0.00045584,120]
[406537285,1771923284354,2000.0,0.00045584,120]
[406537286,1771923284977,2000.0,0.00045584,120]
[406537287,1771923285471,884.36,0.00045584,30]
[406537288,1771923285635,2000.0,0.00045584,120]
[406537289,1771923286255,2000.0,0.00045584,120]
[406537290,1771923287460,2000.0,0.00045584,120]
[406537291,1771923288353,2000.0,0.00045584,120]
[406537292,1771923288747,2000.0,0.00045584,120]
[406537293,1771923289376,2000.0,0.00045584,120]
[406537294,1771923290133,2000.0,0.00045584,120]
[406537295,1771923301166,300.0,0.00010607,2]
[406537296,1771923301460,1200.0,0.00010607,2]
[406537297,1771923308622,500.0,0.00045584,120]
[406537298,1771923309274,500.0,0.00045584,120]
[406537299,1771923311132,530.64118509,0.00045584,120]
[406537300,1771923311926,1969.56467133,0.00010508,2]
[406537301,1771923318547,303.62326822,0.00045584,120]
[406537302,1771923323550,331.01965442,0.00010607,2]
[406537303,1771923323622,378.85817192,0.00010508,2]
[406537304,1771923329856,5820.56750233,0.00010508,2]
[406537305,1771923329878,2515.45191273,0.00010508,2]
[406537306,1771923337543,5562.09619091,0.00010508,2]
[406537307,1771923360157,811.21,0.00045584,30]
[406537308,1771923368972,500.0,0.00045584,120]
[406537309,1771923369591,500.0,0.00045584,120]
[406537310,1771923370216,500.0,0.00045584,120]
[406537311,1771923370819,500.0,0.00045584,120]
[406537312,1771923371419,500.0,0.00045584,120]
[406537313,1771923372040,500.0,0.00045584,120]
[406537314,1771923372631,500.0,0.00045584,120]
[406537315,1771923373248,500.0,0.00045584,120]
[406537316,1771923381892,233.76172706,0.00045584,120]
[406537317,1771923384796,-346.50200952,0.00010508,2]
[406537318,1771923385000,-693.00401904,0.00010508,2]
[406537319,1771923385378,-1386.00803808,0.00010508,2]
[406537320,1771923385413,-2772.01607616,0.00010508,2]
[406537321,1771923385444,-4455.97784768,0.00010508,2]
[406537322,1771923385470,-183.0566,0.00010508,2]
[406537323,1771923389157,-4881.70396763,0.00010508,2]
[406537324,1771923389170,-10000.01,0.00010508,2]
[406537325,1771923389212,-10000.01,0.00010508,2]
[406537326,1771923389225,-10000.01,0.00010508,2]
[406537327,1771923389238,-10000.01,0.00010508,2]
[406537328,1771923389302,-10000.01,0.00010508,2]
[406537329,1771923390320,213.79418428,0.00045584,120]
[406537330,1771923392556,-10000.01,0.00010508,2]
[406537331,1771923392657,-10000.01,0.00010508,2]
[406537332,1771923392817,-10000.01,0.00010508,2]
[406537333,1771923392934,-10000.01,0.00010508,2]
[406537334,1771923395813,-10000.01,0.00010508,2]
[406537335,1771923396050,-10000.01,0.00010508,2]
[406537336,1771923396158,-10000.01,0.00010508,2]
[406537337,1771923396292,-10000.01,0.00010508,2]
[406537338,1771923396398,-10000.01,0.00010508,2]
[406537339,1771923399841,-10000.01,0.00010508,2]
[406537340,1771923399957,-10000.01,0.00010508,2]
[406537341,1771923400095,-10000.01,0.00010508,2]
[406537342,1771923400201,-10000.01,0.00010508,2]
[406537343,1771923400308,-10000.01,0.00010508,2]
[406537344,1771923403232,-10000.01,0.00010508,2]
[406537345,1771923403432,-10000.01,0.00010508,2]
[406537346,1771923403619,-10000.01,0.00010508,2]
[406537347,1771923407036,-10000.01,0.00010508,2]
[406537348,1771923407148,-10000.01,0.00010508,2]
[406537349,1771923407266,-10000.01,0.00010508,2]
[406537350,1771923407356,-10000.01,0.00010508,2]
[406537351,1771923407483,-10000.01,0.00010508,2]
[406537352,1771923555523,150.0,0.00045584,30]
[406537353,1771923560499,210.94677836,0.00045584,30]
[406537354,1771923565478,223.10949731,0.00045584,30]
[406537355,1771923573659,241.0858573,0.00045584,30]
[406537356,1771923596972,1000.0,0.00045584,30]
[406537357,1771923597520,1000.0,0.00045584,30]
[406537358,1771923598188,1000.0,0.00045584,30]
[406537359,1771923598821,1000.0,0.00045584,30]
[406537360,1771923599375,1000.0,0.00045584,30]
[406537361,1771923599922,1000.0,0.00045584,30]
[406537362,1771923600492,928.1361662,0.00045584,30]
[406537367,1771923692619,2312.555,0.00010298,2]
[406537368,1771923692704,180.081,0.00010298,2]
[406537369,1771923927259,151.0,0.00045579,120]
[406537370,1771923927923,156.587,0.00045579,120]
[406537371,1771923928552,156.587,0.00045579,120]
[406537374,1771923946344,14811.0,0.000181,120]
[406537378,1771924054487,-600.98,0.00010353,2]
[406537379,1771924138276,200.0,0.00010072,2]
[406537380,1771924183099,2323.99349219,0.00010307,2]
[406537386,1771924231730,-250.0,0.00010407,2]
[406537387,1771924231741,-215.9411542,0.00010407,2]
[406537388,1771924231893,-84.0588458,0.00010407,2]
[406537389,1771924231903,-378.7855542,0.00010407,2]
[406537390,1771924231916,-467.9508,0.00010407,2]
[406537391,1771924231946,-327.29637489,0.00010407,2]
[406537392,1771924232003,-25.96727091,0.00010407,2]
[406537393,1771924232014,-300.0,0.00010407,2]
[406537394,1771924232023,-300.0,0.00010407,2]
[406537395,1771924232033,-285.0913219,0.00010408,2]
[406537396,1771924232043,-217.87498833,0.00010408,2]
[406537397,1771924232054,-3422.8564656,0.00010408,2]
[406537398,1771924232063,-6249.94767708,0.00010408,2]
[406537399,1771924232073,-352.00854482,0.00010498,2]
[406537400,1771924232082,-150.0,0.00010506,2]
[406537401,1771924232092,-500.0,0.00010507,2]
[406537402,1771924232102,-500.0,0.00010507,2]
[406537403,1771924232113,-586.47155644,0.00010507,2]
[406537404,1771924232123,-278.22481244,0.00010507,2]
[406537405,1771924232133,-226.76077896,0.00010507,2]
[406537406,1771924232143,-500.0,0.00010507,2]
[406537407,1771924232152,-500.0,0.00010507,2]
[406537408,1771924232161,-500.0,0.00010507,2]
[406537409,1771924232170,-500.0,0.00010507,2]
[406537410,1771924232180,-505.30600696,0.00010507,2]
[406537411,1771924232189,-500.0,0.00010507,2]
[406537412,1771924232199,-500.0,0.00010507,2]
[406537413,1771924232208,-500.0,0.00010507,2]
[406537414,1771924232218,-500.0,0.00010507,2]
[406537415,1771924232227,-500.0,0.00010507,2]
[406537416,1771924232236,-453.23638492,0.00010507,2]
[406537417,1771924232246,-500.0,0.00010507,2]
[406537418,1771924232255,-500.0,0.00010507,2]
[406537419,1771924232265,-500.0,0.00010507,2]
[406537420,1771924232275,-500.0,0.00010507,2]
[406537421,1771924232288,-500.0,0.00010507,2]
[406537422,1771924232305,-500.0,0.00010507,2]
[406537423,1771924232315,-500.0,0.00010507,2]
[406537424,1771924232325,-500.0,0.00010507,2]
[406537425,1771924232334,-500.0,0.00010507,2]
[406537426,1771924232344,-500.0,0.00010507,2]
[406537427,1771924232354,-500.0,0.00010507,2]
[406537428,1771924232364,-500.0,0.00010507,2]
[406537429,1771924232374,-500.0,0.00010507,2]
[406537430,1771924232383,-500.0,0.00010507,2]
[406537431,1771924232393,-500.0,0.00010507,2]